[Event "Titled Tuesday Blitz March 29 Early 2022"]
[White "Vysochin, Spartak"]
[Black "Omelja, Artem"]
[WhiteFideId "14103516"]
[BlackFideId "14119846"]
[WhiteElo "2682"]
[BlackElo "2552"]
[Result "1-0"]
[Round "09"]
[TimeControl "180+1"]
[Date "2022.03.30"]
[WhiteClock "0:00:15"]
[BlackClock "0:00:03"]

1. e4 {[%clk 0:03:00]}  c5 {[%clk 0:02:59]} 2. c3 {[%clk 0:02:59]}  d5 {[%clk 0:02:57]} 3. exd5 {[%clk 0:02:59]}  Qxd5 {[%clk 0:02:58]} 4. d4 {[%clk 0:02:58]}  Nf6 {[%clk 0:02:56]} 5. Nf3 {[%clk 0:02:58]}  e6 {[%clk 0:02:47]} 6. Na3 {[%clk 0:02:57]}  Nc6 {[%clk 0:02:41]} 7. Nb5 {[%clk 0:02:55]}  Qd8 {[%clk 0:02:37]} 8. dxc5 {[%clk 0:02:54]}  Bxc5 {[%clk 0:02:33]} 9. Qxd8+ {[%clk 0:02:54]}  Kxd8 {[%clk 0:02:34]} 10. b4 {[%clk 0:02:54]}  Bb6 {[%clk 0:02:14]} 11. Nd6 {[%clk 0:02:49]}  Ke7 {[%clk 0:02:12]} 12. Nc4 {[%clk 0:02:48]}  Bc7 {[%clk 0:02:08]} 13. b5 {[%clk 0:02:48]}  Na5 {[%clk 0:01:55]} 14. Ba3+ {[%clk 0:02:47]}  Ke8 {[%clk 0:01:55]} 15. Nd6+ {[%clk 0:02:45]}  Bxd6 {[%clk 0:01:54]} 16. Bxd6 {[%clk 0:02:46]}  b6 {[%clk 0:01:37]} 17. c4 {[%clk 0:02:39]}  Nd7 {[%clk 0:01:27]} 18. Nd2 {[%clk 0:02:11]}  Bb7 {[%clk 0:01:24]} 19. f3 {[%clk 0:02:11]}  Rc8 {[%clk 0:01:21]} 20. Kf2 {[%clk 0:02:09]}  f6 {[%clk 0:01:20]} 21. Be2 {[%clk 0:02:01]}  Kf7 {[%clk 0:01:20]} 22. Bb4 {[%clk 0:01:46]}  Rhd8 {[%clk 0:01:09]} 23. Rhc1 {[%clk 0:01:43]}  Nc5 {[%clk 0:00:56]} 24. Bxc5 {[%clk 0:01:33]}  Rxc5 {[%clk 0:00:57]} 25. Nb3 {[%clk 0:01:32]}  Rc7 {[%clk 0:00:12]} 26. Nxa5 {[%clk 0:01:27]}  bxa5 {[%clk 0:00:13]} 27. c5 {[%clk 0:01:28]}  Bd5 {[%clk 0:00:11]} 28. a4 {[%clk 0:01:13]}  Rb8 {[%clk 0:00:08]} 29. Ke3 {[%clk 0:01:10]}  f5 {[%clk 0:00:07]} 30. g3 {[%clk 0:01:07]}  Kf6 {[%clk 0:00:07]} 31. c6 {[%clk 0:01:00]}  e5 {[%clk 0:00:06]} 32. Rc5 {[%clk 0:00:55]}  Be6 {[%clk 0:00:06]} 33. Rd1 {[%clk 0:00:54]}  g6 {[%clk 0:00:06]} 34. f4 {[%clk 0:00:53]}  e4 {[%clk 0:00:04]} 35. Re5 {[%clk 0:00:48]}  Bb3 {[%clk 0:00:03]} 36. Rd6+ {[%clk 0:00:44]}  Kf7 {[%clk 0:00:03]} 37. Rd4 {[%clk 0:00:42]}  Be6 {[%clk 0:00:03]} 38. Bc4 {[%clk 0:00:41]}  Bxc4 {[%clk 0:00:03]} 39. Rxc4 {[%clk 0:00:42]}  Rd8 {[%clk 0:00:04]} 40. Rd4 {[%clk 0:00:42]}  Rdc8 {[%clk 0:00:01]} 41. Rd6 {[%clk 0:00:39]}  Rb8 {[%clk 0:00:02]} 42. h3 {[%clk 0:00:35]}  Kf8 {[%clk 0:00:01]} 43. g4 {[%clk 0:00:35]}  Kf7 {[%clk 0:00:02]} 44. gxf5 {[%clk 0:00:35]}  gxf5 {[%clk 0:00:03]} 45. Rxf5+ {[%clk 0:00:34]}  Ke7 {[%clk 0:00:03]} 46. Rh6 {[%clk 0:00:34]}  Rh8 {[%clk 0:00:04]} 47. Kxe4 {[%clk 0:00:33]}  Kd8 {[%clk 0:00:05]} 48. Kd5 {[%clk 0:00:31]}  Re7 {[%clk 0:00:05]} 49. Re5 {[%clk 0:00:30]}  Rg7 {[%clk 0:00:04]} 50. Reh5 {[%clk 0:00:23]}  Kc7 {[%clk 0:00:03]} 51. f5 {[%clk 0:00:23]}  Rd8+ {[%clk 0:00:03]} 52. Kc5 {[%clk 0:00:23]}  Rf8 {[%clk 0:00:03]} 53. f6 {[%clk 0:00:21]}  Rgf7 {[%clk 0:00:01]} 54. Rxh7 {[%clk 0:00:21]}  Kb8 {[%clk 0:00:02]} 55. Rxf7 {[%clk 0:00:21]}  Rxf7 {[%clk 0:00:03]} 56. Rf5 {[%clk 0:00:21]}  Kc7 {[%clk 0:00:04]} 57. h4 {[%clk 0:00:20]}  Rh7 {[%clk 0:00:05]} 58. h5 {[%clk 0:00:20]}  Rf7 {[%clk 0:00:05]} 59. h6 {[%clk 0:00:20]}  Kd8 {[%clk 0:00:03]} 60. h7 {[%clk 0:00:18]}  Rxh7 {[%clk 0:00:03]} 61. f7 {[%clk 0:00:18]}  Kc7 {[%clk 0:00:02]} 62. f8=Q {[%clk 0:00:17]}  Rd7 {[%clk 0:00:02]} 63. cxd7 {[%clk 0:00:16]}  a6 {[%clk 0:00:03]} 64. Qc8# {[%clk 0:00:15]} 1-0


[Site "https://www.chess.com"]

[Event "Titled Tuesday Blitz March 29 Early 2022"]
[White "Xu, Yi"]
[Black "Reprintsev, Alexander"]
[WhiteFideId "8605564"]
[BlackFideId "14100541"]
[WhiteElo "2471"]
[BlackElo "2108"]
[Result "1-0"]
[Round "09"]
[TimeControl "180+1"]
[Date "2022.03.29"]
[WhiteClock "0:00:55"]
[BlackClock "0:01:25"]

1. e4 {[%clk 0:03:00]}  d5 {[%clk 0:02:53]} 2. exd5 {[%clk 0:03:00]}  Qxd5 {[%clk 0:02:53]} 3. Nc3 {[%clk 0:03:00]}  Qa5 {[%clk 0:02:52]} 4. Nf3 {[%clk 0:03:00]}  Nf6 {[%clk 0:02:52]} 5. d4 {[%clk 0:02:59]}  Nc6 {[%clk 0:02:52]} 6. Bb5 {[%clk 0:02:55]}  Ne4 {[%clk 0:02:52]} 7. Qd3 {[%clk 0:02:52]}  Nxc3 {[%clk 0:02:52]} 8. bxc3 {[%clk 0:02:52]}  a6 {[%clk 0:02:52]} 9. Bxc6+ {[%clk 0:02:51]}  bxc6 {[%clk 0:02:52]} 10. Ne5 {[%clk 0:02:49]}  f6 {[%clk 0:02:52]} 11. Nc4 {[%clk 0:02:42]}  Qf5 {[%clk 0:02:52]} 12. a4 {[%clk 0:02:17]}  a5 {[%clk 0:02:44]} 13. Ba3 {[%clk 0:02:15]}  Qxd3 {[%clk 0:02:33]} 14. cxd3 {[%clk 0:02:14]}  Ba6 {[%clk 0:02:30]} 15. Kd2 {[%clk 0:02:05]}  Bxc4 {[%clk 0:02:24]} 16. dxc4 {[%clk 0:02:06]}  Kd7 {[%clk 0:02:24]} 17. Rab1 {[%clk 0:02:03]}  e5 {[%clk 0:02:20]} 18. Bxf8 {[%clk 0:01:50]}  Rhxf8 {[%clk 0:02:21]} 19. Rhe1 {[%clk 0:01:49]}  exd4 {[%clk 0:02:18]} 20. cxd4 {[%clk 0:01:49]}  Rab8 {[%clk 0:02:18]} 21. Kd3 {[%clk 0:01:44]}  Kd6 {[%clk 0:02:03]} 22. c5+ {[%clk 0:01:41]}  Kd7 {[%clk 0:02:03]} 23. Kc4 {[%clk 0:01:39]}  h5 {[%clk 0:01:58]} 24. g3 {[%clk 0:01:37]}  g5 {[%clk 0:01:55]} 25. d5 {[%clk 0:01:34]}  cxd5+ {[%clk 0:01:54]} 26. Kxd5 {[%clk 0:01:33]}  c6+ {[%clk 0:01:53]} 27. Ke4 {[%clk 0:01:33]}  Ke6 {[%clk 0:01:51]} 28. Rb6 {[%clk 0:01:30]}  Rxb6 {[%clk 0:01:49]} 29. cxb6 {[%clk 0:01:30]}  Rb8 {[%clk 0:01:49]} 30. Kd4+ {[%clk 0:01:25]}  Kd6 {[%clk 0:01:48]} 31. Rb1 {[%clk 0:01:26]}  c5+ {[%clk 0:01:47]} 32. Kc4 {[%clk 0:01:23]}  Kc6 {[%clk 0:01:45]} 33. b7 {[%clk 0:01:24]}  h4 {[%clk 0:01:42]} 34. g4 {[%clk 0:01:10]}  h3 {[%clk 0:01:41]} 35. f3 {[%clk 0:01:09]}  f5 {[%clk 0:01:26]} 36. gxf5 {[%clk 0:01:08]}  Kd6 {[%clk 0:01:27]} 37. Rb6+ {[%clk 0:01:05]}  Ke5 {[%clk 0:01:27]} 38. f6 {[%clk 0:00:57]}  Kf4 {[%clk 0:01:27]} 39. f7 {[%clk 0:00:57]}  Kxf3 {[%clk 0:01:25]} 40. Rf6+ {[%clk 0:00:56]}  Kg2 {[%clk 0:01:25]} 41. f8=Q {[%clk 0:00:55]} 1-0


[Site "https://www.chess.com"]

[Event "Titled Tuesday Blitz March 29 Early 2022"]
[White "Yanayt, Eugene"]
[Black "Srinath, Rao S.V."]
[WhiteFideId "2020165"]
[BlackFideId "5028876"]
[WhiteElo "2352"]
[BlackElo "2528"]
[Result "1-0"]
[Round "09"]
[TimeControl "180+1"]
[Date "2022.03.30"]
[WhiteClock "0:00:46"]
[BlackClock "0:00:39"]

1. d4 {[%clk 0:02:51]}  d5 {[%clk 0:02:47]} 2. c4 {[%clk 0:02:48]}  c6 {[%clk 0:02:47]} 3. Nf3 {[%clk 0:02:44]}  Nf6 {[%clk 0:02:47]} 4. g3 {[%clk 0:02:38]}  Bf5 {[%clk 0:02:42]} 5. Nc3 {[%clk 0:02:37]}  e6 {[%clk 0:02:42]} 6. Nh4 {[%clk 0:02:35]}  Bg6 {[%clk 0:02:41]} 7. Qb3 {[%clk 0:02:34]}  Qb6 {[%clk 0:02:40]} 8. Nxg6 {[%clk 0:02:30]}  hxg6 {[%clk 0:02:39]} 9. Bg2 {[%clk 0:02:30]}  Nbd7 {[%clk 0:02:36]} 10. O-O {[%clk 0:02:29]}  Be7 {[%clk 0:02:29]} 11. e4 {[%clk 0:02:19]}  dxe4 {[%clk 0:02:22]} 12. Nxe4 {[%clk 0:02:18]}  Nxe4 {[%clk 0:02:21]} 13. Bxe4 {[%clk 0:02:17]}  O-O {[%clk 0:02:13]} 14. Be3 {[%clk 0:02:12]}  Nf6 {[%clk 0:02:09]} 15. Bf3 {[%clk 0:02:09]}  Qc7 {[%clk 0:02:06]} 16. Rac1 {[%clk 0:02:04]}  Rfd8 {[%clk 0:02:05]} 17. d5 {[%clk 0:01:58]}  e5 {[%clk 0:01:52]} 18. Rfd1 {[%clk 0:01:49]}  a5 {[%clk 0:01:50]} 19. Bb6 {[%clk 0:01:41]}  Qc8 {[%clk 0:01:41]} 20. Bxd8 {[%clk 0:01:41]}  Bxd8 {[%clk 0:01:42]} 21. dxc6 {[%clk 0:01:40]}  bxc6 {[%clk 0:01:43]} 22. Rd6 {[%clk 0:01:39]}  Qf5 {[%clk 0:01:41]} 23. Bxc6 {[%clk 0:01:31]}  Rc8 {[%clk 0:01:36]} 24. Qf3 {[%clk 0:01:30]}  Qg5 {[%clk 0:01:34]} 25. Rcd1 {[%clk 0:01:27]}  Bb6 {[%clk 0:01:33]} 26. Bd5 {[%clk 0:01:19]}  Bc5 {[%clk 0:01:31]} 27. Rc6 {[%clk 0:01:11]}  Rxc6 {[%clk 0:01:30]} 28. Bxc6 {[%clk 0:01:12]}  Ng4 {[%clk 0:01:30]} 29. Rf1 {[%clk 0:01:03]}  Qh5 {[%clk 0:01:24]} 30. Qg2 {[%clk 0:00:57]}  Bd4 {[%clk 0:01:20]} 31. b3 {[%clk 0:00:53]}  f5 {[%clk 0:01:19]} 32. Bd5+ {[%clk 0:00:52]}  Kh7 {[%clk 0:01:17]} 33. a3 {[%clk 0:00:51]}  f4 {[%clk 0:01:12]} 34. Bf3 {[%clk 0:00:50]}  e4 {[%clk 0:00:53]} 35. Bxe4 {[%clk 0:00:50]}  fxg3 {[%clk 0:00:51]} 36. hxg3 {[%clk 0:00:49]}  Nxf2 {[%clk 0:00:44]} 37. Rxf2 {[%clk 0:00:49]}  Qe2 {[%clk 0:00:42]} 38. Qh3+ {[%clk 0:00:46]}  Kg8 {[%clk 0:00:41]} 39. Qe6+ {[%clk 0:00:46]}  Kh8 {[%clk 0:00:39]} 40. Qe8+ {[%clk 0:00:45]}  Kh7 {[%clk 0:00:39]} 41. Qxg6+ {[%clk 0:00:45]}  Kh8 {[%clk 0:00:39]} 42. Qh7# {[%clk 0:00:46]} 1-0


[Site "https://www.chess.com"]

[Event "Titled Tuesday Blitz March 29 Early 2022"]
[White "Zaksaite, Salomeja"]
[Black "Rastbod, Ali"]
[WhiteFideId "12801496"]
[BlackFideId "12567477"]
[WhiteElo "1953"]
[BlackElo "2200"]
[Result "0-1"]
[Round "09"]
[TimeControl "180+1"]
[Date "2022.03.29"]
[WhiteClock "0:00:01"]
[BlackClock "0:01:06"]

1. e4 {[%clk 0:02:56]}  g6 {[%clk 0:02:59]} 2. d4 {[%clk 0:02:55]}  Bg7 {[%clk 0:02:59]} 3. Nc3 {[%clk 0:02:54]}  d6 {[%clk 0:03:00]} 4. Be3 {[%clk 0:02:53]}  a6 {[%clk 0:03:00]} 5. Nf3 {[%clk 0:02:51]}  b5 {[%clk 0:03:00]} 6. Bd3 {[%clk 0:02:51]}  Bb7 {[%clk 0:03:01]} 7. Qd2 {[%clk 0:02:51]}  h6 {[%clk 0:03:00]} 8. a4 {[%clk 0:02:51]}  b4 {[%clk 0:03:00]} 9. Ne2 {[%clk 0:02:51]}  a5 {[%clk 0:03:01]} 10. c3 {[%clk 0:02:51]}  Nd7 {[%clk 0:02:56]} 11. cxb4 {[%clk 0:02:50]}  axb4 {[%clk 0:02:57]} 12. Qxb4 {[%clk 0:02:47]}  Rb8 {[%clk 0:02:58]} 13. Qd2 {[%clk 0:02:44]}  Ngf6 {[%clk 0:02:56]} 14. Ng3 {[%clk 0:02:44]}  Ng4 {[%clk 0:02:53]} 15. b4 {[%clk 0:02:37]}  Nxe3 {[%clk 0:02:51]} 16. fxe3 {[%clk 0:02:31]}  c5 {[%clk 0:02:49]} 17. Rb1 {[%clk 0:01:56]}  cxb4 {[%clk 0:02:44]} 18. Rxb4 {[%clk 0:01:54]}  O-O {[%clk 0:02:44]} 19. O-O {[%clk 0:01:54]}  e5 {[%clk 0:02:28]} 20. Rfb1 {[%clk 0:01:53]}  Ba8 {[%clk 0:02:24]} 21. Rxb8 {[%clk 0:01:09]}  Nxb8 {[%clk 0:02:25]} 22. dxe5 {[%clk 0:01:06]}  dxe5 {[%clk 0:02:23]} 23. Bb5 {[%clk 0:01:05]}  Qe7 {[%clk 0:02:19]} 24. Qb4 {[%clk 0:01:01]}  Qa7 {[%clk 0:02:17]} 25. Qb3 {[%clk 0:00:37]}  Nd7 {[%clk 0:02:10]} 26. h4 {[%clk 0:00:33]}  Nc5 {[%clk 0:02:08]} 27. Qc4 {[%clk 0:00:32]}  Ne6 {[%clk 0:01:58]} 28. Rb3 {[%clk 0:00:24]}  Rd8 {[%clk 0:01:54]} 29. h5 {[%clk 0:00:24]}  Rd6 {[%clk 0:01:45]} 30. hxg6 {[%clk 0:00:24]}  fxg6 {[%clk 0:01:46]} 31. Nh4 {[%clk 0:00:22]}  Kh7 {[%clk 0:01:45]} 32. Rd3 {[%clk 0:00:13]}  Rxd3 {[%clk 0:01:35]} 33. Qxd3 {[%clk 0:00:14]}  Nc5 {[%clk 0:01:36]} 34. Qc2 {[%clk 0:00:14]}  h5 {[%clk 0:01:25]} 35. Kf2 {[%clk 0:00:13]}  Bh6 {[%clk 0:01:25]} 36. Nf3 {[%clk 0:00:11]}  Nxe4+ {[%clk 0:01:20]} 37. Nxe4 {[%clk 0:00:09]}  Qxe3+ {[%clk 0:01:18]} 38. Kf1 {[%clk 0:00:09]}  Bxe4 {[%clk 0:01:15]} 39. Qc7+ {[%clk 0:00:09]}  Bg7 {[%clk 0:01:15]} 40. Qe7 {[%clk 0:00:05]}  Bxf3 {[%clk 0:01:12]} 41. gxf3 {[%clk 0:00:05]}  Qxf3+ {[%clk 0:01:13]} 42. Ke1 {[%clk 0:00:05]}  e4 {[%clk 0:01:14]} 43. Be2 {[%clk 0:00:05]}  Qc3+ {[%clk 0:01:13]} 44. Kf1 {[%clk 0:00:04]}  e3 {[%clk 0:01:11]} 45. Qd7 {[%clk 0:00:03]}  Kh6 {[%clk 0:01:10]} 46. Qb5 {[%clk 0:00:03]}  Qf6+ {[%clk 0:01:10]} 47. Kg2 {[%clk 0:00:02]}  Qf2+ {[%clk 0:01:10]} 48. Kh1 {[%clk 0:00:01]}  h4 {[%clk 0:01:06]} 0-1


[Site "https://www.chess.com"]

[Event "Titled Tuesday Blitz March 29 Early 2022"]
[White "Aradhya, Garg"]
[Black "Aaditya Dhingra"]
[WhiteFideId "25006746"]
[BlackFideId "25678191"]
[WhiteElo "2169"]
[BlackElo "1849"]
[Result "1-0"]
[Round "10"]
[TimeControl "180+1"]
[Date "2022.03.29"]
[WhiteClock "0:00:50"]
[BlackClock "0:00:04"]

1. d4 {[%clk 0:02:57]}  Nf6 {[%clk 0:02:59]} 2. Nf3 {[%clk 0:02:56]}  e6 {[%clk 0:02:59]} 3. Bg5 {[%clk 0:02:55]}  d5 {[%clk 0:02:57]} 4. e3 {[%clk 0:02:55]}  Be7 {[%clk 0:02:55]} 5. c3 {[%clk 0:02:54]}  Nbd7 {[%clk 0:02:53]} 6. Bd3 {[%clk 0:02:53]}  c5 {[%clk 0:02:53]} 7. Nbd2 {[%clk 0:02:53]}  h6 {[%clk 0:02:51]} 8. Bh4 {[%clk 0:02:53]}  b6 {[%clk 0:02:50]} 9. O-O {[%clk 0:02:51]}  Bb7 {[%clk 0:02:49]} 10. Qb1 {[%clk 0:02:50]}  O-O {[%clk 0:02:47]} 11. a4 {[%clk 0:02:48]}  a6 {[%clk 0:02:44]} 12. Re1 {[%clk 0:02:43]}  Re8 {[%clk 0:02:40]} 13. h3 {[%clk 0:02:42]}  Qc7 {[%clk 0:02:35]} 14. Bg3 {[%clk 0:02:42]}  Bd6 {[%clk 0:02:35]} 15. Bxd6 {[%clk 0:02:40]}  Qxd6 {[%clk 0:02:36]} 16. e4 {[%clk 0:02:40]}  dxe4 {[%clk 0:02:32]} 17. Nxe4 {[%clk 0:02:40]}  Bxe4 {[%clk 0:02:26]} 18. Bxe4 {[%clk 0:02:41]}  Rad8 {[%clk 0:02:16]} 19. Bd3 {[%clk 0:02:28]}  cxd4 {[%clk 0:02:07]} 20. Nxd4 {[%clk 0:02:28]}  Nc5 {[%clk 0:02:06]} 21. Bf1 {[%clk 0:02:28]}  e5 {[%clk 0:01:42]} 22. Nf5 {[%clk 0:02:22]}  Qd7 {[%clk 0:01:42]} 23. Ne3 {[%clk 0:02:19]}  Qb7 {[%clk 0:01:24]} 24. Qc2 {[%clk 0:02:15]}  Rd7 {[%clk 0:01:04]} 25. Rad1 {[%clk 0:02:09]}  Red8 {[%clk 0:01:04]} 26. Rxd7 {[%clk 0:02:08]}  Rxd7 {[%clk 0:01:01]} 27. b4 {[%clk 0:02:05]}  Nce4 {[%clk 0:00:58]} 28. Rd1 {[%clk 0:01:41]}  Rxd1 {[%clk 0:00:54]} 29. Qxd1 {[%clk 0:01:41]}  g6 {[%clk 0:00:39]} 30. Qd3 {[%clk 0:01:34]}  a5 {[%clk 0:00:34]} 31. Nc4 {[%clk 0:01:26]}  Qc7 {[%clk 0:00:27]} 32. Qe3 {[%clk 0:01:18]}  Kg7 {[%clk 0:00:16]} 33. f3 {[%clk 0:01:17]}  Ng5 {[%clk 0:00:13]} 34. Qxe5 {[%clk 0:01:14]}  Qd7 {[%clk 0:00:14]} 35. Nxb6 {[%clk 0:01:00]}  Qd2 {[%clk 0:00:12]} 36. bxa5 {[%clk 0:00:58]}  Ne6 {[%clk 0:00:09]} 37. a6 {[%clk 0:00:55]}  Qd8 {[%clk 0:00:05]} 38. a5 {[%clk 0:00:51]}  Kh7 {[%clk 0:00:04]} 39. a7 {[%clk 0:00:50]} 1-0


[Site "https://www.chess.com"]

[Event "Titled Tuesday Blitz March 29 Early 2022"]
[White "Bacrot, Etienne"]
[Black "Manolache, Marius"]
[WhiteFideId "605506"]
[BlackFideId "1201530"]
[WhiteElo "2673"]
[BlackElo "2389"]
[Result "1/2-1/2"]
[Round "10"]
[TimeControl "180+1"]
[Date "2022.03.29"]
[WhiteClock "0:00:04"]
[BlackClock "0:00:06"]

1. e4 {[%clk 0:03:00]}  c5 {[%clk 0:02:58]} 2. Nf3 {[%clk 0:03:01]}  e6 {[%clk 0:02:57]} 3. c3 {[%clk 0:03:00]}  Nf6 {[%clk 0:02:56]} 4. d3 {[%clk 0:02:59]}  Be7 {[%clk 0:02:55]} 5. Nbd2 {[%clk 0:02:58]}  O-O {[%clk 0:02:53]} 6. g3 {[%clk 0:02:58]}  b6 {[%clk 0:02:52]} 7. Bg2 {[%clk 0:02:58]}  Bb7 {[%clk 0:02:53]} 8. O-O {[%clk 0:02:58]}  Qc7 {[%clk 0:02:53]} 9. Re1 {[%clk 0:02:55]}  a6 {[%clk 0:02:52]} 10. h4 {[%clk 0:02:55]}  d6 {[%clk 0:02:50]} 11. b3 {[%clk 0:02:50]}  Nbd7 {[%clk 0:02:49]} 12. Bb2 {[%clk 0:02:50]}  b5 {[%clk 0:02:49]} 13. d4 {[%clk 0:02:49]}  Rfd8 {[%clk 0:02:45]} 14. Rc1 {[%clk 0:02:47]}  Rac8 {[%clk 0:02:35]} 15. Qe2 {[%clk 0:02:47]}  Nf8 {[%clk 0:02:30]} 16. e5 {[%clk 0:02:40]}  dxe5 {[%clk 0:02:28]} 17. dxe5 {[%clk 0:02:40]}  Ng4 {[%clk 0:02:21]} 18. h5 {[%clk 0:02:22]}  Rd7 {[%clk 0:02:06]} 19. c4 {[%clk 0:02:18]}  b4 {[%clk 0:02:03]} 20. Ne4 {[%clk 0:02:07]}  Rcd8 {[%clk 0:02:02]} 21. Ba1 {[%clk 0:01:32]}  a5 {[%clk 0:02:01]} 22. Qb2 {[%clk 0:01:27]}  Nh6 {[%clk 0:01:53]} 23. Nd6 {[%clk 0:01:24]}  Bc6 {[%clk 0:01:35]} 24. Nd2 {[%clk 0:01:01]}  Bxg2 {[%clk 0:01:20]} 25. Kxg2 {[%clk 0:01:02]}  f5 {[%clk 0:01:20]} 26. Nf3 {[%clk 0:00:54]}  Qc6 {[%clk 0:01:14]} 27. Qe2 {[%clk 0:00:39]}  Ng4 {[%clk 0:01:06]} 28. Kg1 {[%clk 0:00:39]}  Bxd6 {[%clk 0:01:06]} 29. exd6 {[%clk 0:00:38]}  Rxd6 {[%clk 0:01:02]} 30. Rcd1 {[%clk 0:00:16]}  Rxd1 {[%clk 0:00:54]} 31. Rxd1 {[%clk 0:00:17]}  Rxd1+ {[%clk 0:00:51]} 32. Qxd1 {[%clk 0:00:17]}  h6 {[%clk 0:00:42]} 33. Qe2 {[%clk 0:00:13]}  Nd7 {[%clk 0:00:42]} 34. Nh4 {[%clk 0:00:13]}  Kf7 {[%clk 0:00:41]} 35. Ng6 {[%clk 0:00:13]}  Qd6 {[%clk 0:00:37]} 36. Kg2 {[%clk 0:00:13]}  Ngf6 {[%clk 0:00:33]} 37. Bxf6 {[%clk 0:00:12]}  Kxf6 {[%clk 0:00:30]} 38. f3 {[%clk 0:00:08]}  Qd4 {[%clk 0:00:18]} 39. g4 {[%clk 0:00:08]}  Ne5 {[%clk 0:00:15]} 40. Nxe5 {[%clk 0:00:05]}  Qxe5 {[%clk 0:00:15]} 41. Qd2 {[%clk 0:00:06]}  fxg4 {[%clk 0:00:13]} 42. Qd8+ {[%clk 0:00:04]}  Kf7 {[%clk 0:00:13]} 43. fxg4 {[%clk 0:00:04]}  Qe4+ {[%clk 0:00:12]} 44. Kg3 {[%clk 0:00:04]}  Qe5+ {[%clk 0:00:12]} 45. Kg2 {[%clk 0:00:04]}  Qe4+ {[%clk 0:00:12]} 46. Kg3 {[%clk 0:00:05]}  Qe3+ {[%clk 0:00:13]} 47. Kh4 {[%clk 0:00:05]}  Qf2+ {[%clk 0:00:11]} 48. Kh3 {[%clk 0:00:05]}  Qf3+ {[%clk 0:00:12]} 49. Kh2 {[%clk 0:00:05]}  Qxg4 {[%clk 0:00:11]} 50. Qc7+ {[%clk 0:00:05]}  Kf6 {[%clk 0:00:11]} 51. Qxc5 {[%clk 0:00:05]}  Qe2+ {[%clk 0:00:06]} 52. Kg1 {[%clk 0:00:04]}  Qe1+ {[%clk 0:00:06]} 53. Kg2 {[%clk 0:00:04]}  Qe2+ {[%clk 0:00:06]} 54. Kg1 {[%clk 0:00:04]}  Qg4+ {[%clk 0:00:06]} 55. Kf2 {[%clk 0:00:03]}  Qf4+ {[%clk 0:00:06]} 56. Kg2 {[%clk 0:00:03]}  Qg4+ {[%clk 0:00:06]} 57. Kf2 {[%clk 0:00:04]}  Qf4+ {[%clk 0:00:06]} 58. Kg2 {[%clk 0:00:04]}  Qg4+ {[%clk 0:00:06]} 59. Kf2 {[%clk 0:00:04]} 1/2-1/2


[Site "https://www.chess.com"]

[Event "Titled Tuesday Blitz March 29 Early 2022"]
[White "Chen, Qi b"]
[Black "Kucuksari, Kaan"]
[WhiteFideId "8614733"]
[BlackFideId "6380166"]
[WhiteElo "2432"]
[BlackElo "2305"]
[Result "1-0"]
[Round "10"]
[TimeControl "180+1"]
[Date "2022.03.29"]
[WhiteClock "0:00:09"]
[BlackClock "0:00:31"]

1. e4 {[%clk 0:03:00]}  e5 {[%clk 0:03:00]} 2. Nf3 {[%clk 0:03:00]}  d6 {[%clk 0:02:59]} 3. d4 {[%clk 0:02:59]}  Nc6 {[%clk 0:02:58]} 4. dxe5 {[%clk 0:02:51]}  Nxe5 {[%clk 0:02:55]} 5. Nxe5 {[%clk 0:02:45]}  dxe5 {[%clk 0:02:56]} 6. Qxd8+ {[%clk 0:02:45]}  Kxd8 {[%clk 0:02:57]} 7. Bc4 {[%clk 0:02:44]}  f6 {[%clk 0:02:55]} 8. Be3 {[%clk 0:02:40]}  c6 {[%clk 0:02:53]} 9. a4 {[%clk 0:02:37]}  Kc7 {[%clk 0:02:50]} 10. Nd2 {[%clk 0:02:36]}  g6 {[%clk 0:02:32]} 11. g3 {[%clk 0:02:28]}  b6 {[%clk 0:02:20]} 12. f4 {[%clk 0:02:26]}  Bd6 {[%clk 0:02:19]} 13. O-O-O {[%clk 0:02:19]}  Ne7 {[%clk 0:02:18]} 14. Rhf1 {[%clk 0:02:19]}  Bg4 {[%clk 0:02:15]} 15. Rde1 {[%clk 0:02:14]}  Rhf8 {[%clk 0:02:14]} 16. c3 {[%clk 0:02:06]}  Rad8 {[%clk 0:02:14]} 17. Kc2 {[%clk 0:02:05]}  f5 {[%clk 0:02:00]} 18. fxe5 {[%clk 0:01:55]}  Bxe5 {[%clk 0:02:01]} 19. Bg5 {[%clk 0:01:45]}  Bf6 {[%clk 0:02:01]} 20. Bh6 {[%clk 0:01:45]}  Rfe8 {[%clk 0:01:59]} 21. Bf7 {[%clk 0:01:34]}  Nc8 {[%clk 0:01:51]} 22. Bxe8 {[%clk 0:01:32]}  Rxe8 {[%clk 0:01:52]} 23. Bf4+ {[%clk 0:01:25]}  Kb7 {[%clk 0:01:51]} 24. exf5 {[%clk 0:01:23]}  Bxf5+ {[%clk 0:01:51]} 25. Kc1 {[%clk 0:01:23]}  Rd8 {[%clk 0:01:51]} 26. Ne4 {[%clk 0:01:13]}  Be7 {[%clk 0:01:46]} 27. Nd2 {[%clk 0:00:55]}  h5 {[%clk 0:01:42]} 28. Nf3 {[%clk 0:00:53]}  Bc5 {[%clk 0:01:35]} 29. Be3 {[%clk 0:00:50]}  Bd3 {[%clk 0:01:34]} 30. Rf2 {[%clk 0:00:50]}  Bd6 {[%clk 0:01:32]} 31. Rd1 {[%clk 0:00:45]}  Bc4 {[%clk 0:01:28]} 32. Ne5 {[%clk 0:00:40]}  Bb3 {[%clk 0:01:27]} 33. Nf7 {[%clk 0:00:37]}  Rd7 {[%clk 0:01:25]} 34. Nxd6+ {[%clk 0:00:36]}  Nxd6 {[%clk 0:01:25]} 35. Rdd2 {[%clk 0:00:27]}  Bd5 {[%clk 0:01:25]} 36. Rf1 {[%clk 0:00:23]}  Nc4 {[%clk 0:01:25]} 37. Rd3 {[%clk 0:00:23]}  Re7 {[%clk 0:01:23]} 38. Bd2 {[%clk 0:00:17]}  Ne5 {[%clk 0:01:16]} 39. Re3 {[%clk 0:00:16]}  Bc4 {[%clk 0:01:16]} 40. Rf6 {[%clk 0:00:08]}  g5 {[%clk 0:01:11]} 41. Rf5 {[%clk 0:00:06]}  Nd3+ {[%clk 0:01:01]} 42. Kc2 {[%clk 0:00:06]}  Rxe3 {[%clk 0:00:55]} 43. Bxe3 {[%clk 0:00:07]}  g4 {[%clk 0:00:55]} 44. Rxh5 {[%clk 0:00:07]}  Ne1+ {[%clk 0:00:55]} 45. Kc1 {[%clk 0:00:07]}  Nf3 {[%clk 0:00:56]} 46. Rh7+ {[%clk 0:00:05]}  Ka6 {[%clk 0:00:56]} 47. h4 {[%clk 0:00:05]}  Ne1 {[%clk 0:00:38]} 48. b4 {[%clk 0:00:04]}  Nd3+ {[%clk 0:00:39]} 49. Kd2 {[%clk 0:00:04]}  Ne5 {[%clk 0:00:39]} 50. Bf4 {[%clk 0:00:04]}  Nf3+ {[%clk 0:00:36]} 51. Ke3 {[%clk 0:00:04]}  Bb3 {[%clk 0:00:32]} 52. Bb8 {[%clk 0:00:04]}  Bxa4 {[%clk 0:00:32]} 53. Rxa7+ {[%clk 0:00:04]}  Kb5 {[%clk 0:00:33]} 54. h5 {[%clk 0:00:04]}  Bc2 {[%clk 0:00:32]} 55. h6 {[%clk 0:00:05]}  Ng5 {[%clk 0:00:31]} 56. Rg7 {[%clk 0:00:05]}  Nh7 {[%clk 0:00:28]} 57. Rxg4 {[%clk 0:00:05]}  Nf6 {[%clk 0:00:27]} 58. Rg7 {[%clk 0:00:04]}  Kc4 {[%clk 0:00:25]} 59. g4 {[%clk 0:00:04]}  Nd5+ {[%clk 0:00:23]} 60. Kd2 {[%clk 0:00:03]}  Be4 {[%clk 0:00:23]} 61. g5 {[%clk 0:00:03]}  Nxc3 {[%clk 0:00:23]} 62. h7 {[%clk 0:00:03]}  Nb1+ {[%clk 0:00:24]} 63. Ke3 {[%clk 0:00:03]}  Bxh7 {[%clk 0:00:25]} 64. Rxh7 {[%clk 0:00:04]}  Nc3 {[%clk 0:00:26]} 65. g6 {[%clk 0:00:05]}  Nd5+ {[%clk 0:00:27]} 66. Ke4 {[%clk 0:00:05]}  Nf6+ {[%clk 0:00:28]} 67. Kf5 {[%clk 0:00:05]}  Nd5 {[%clk 0:00:28]} 68. g7 {[%clk 0:00:05]}  b5 {[%clk 0:00:28]} 69. Ke6 {[%clk 0:00:05]}  Nxb4 {[%clk 0:00:27]} 70. Rh4+ {[%clk 0:00:05]}  Kb3 {[%clk 0:00:27]} 71. Rxb4+ {[%clk 0:00:06]}  Kxb4 {[%clk 0:00:27]} 72. g8=Q {[%clk 0:00:07]}  c5 {[%clk 0:00:28]} 73. Qg4+ {[%clk 0:00:07]}  c4 {[%clk 0:00:29]} 74. Bd6+ {[%clk 0:00:08]}  Kb3 {[%clk 0:00:30]} 75. Qg3+ {[%clk 0:00:08]}  Kb2 {[%clk 0:00:30]} 76. Be5+ {[%clk 0:00:08]}  Kc2 {[%clk 0:00:31]} 77. Kd5 {[%clk 0:00:08]}  b4 {[%clk 0:00:31]} 78. Kxc4 {[%clk 0:00:09]} 1-0


[Site "https://www.chess.com"]